Cogmind - Beta 15 @@@ ROGUE MODE // 2025.05.20 @ 18:35:29 Player: Demo Result: Destroyed by Fortress with Graviton Cannon Performance ------------- Evolutions (8) 4000 Regions Visited (16) 3200 Robots Destroyed (280) 1400 Value Destroyed (14565) 14565 Prototype IDs (88) 1760 Alien Tech Used (4) 800 Bonus (14648) 14648 TOTAL SCORE: 40373 Bonus ------- High Alert Combat Kills 5921 Follower Combat Kills 587 Entered Garrisons 400 Used RIF Installer 1000 Entered DSFs 500 Registered with UFD 300 Met Optimus in HQ 500 Used Core Reset Matrix 3000 Scanned by Researcher 500 Met Sigix 2000 Friendly Fire -60 Cogmind --------- Core Integrity 0/1450 Matter 300/300 Energy 148/150 System Corruption 23% Temperature Cool (0) Movement Rolling (110) Ox1 Location -2/Quarantine Parts ------- > --- POWER (2) -------- Micro Antimatter Reactor > --- PROPULSION (5) --- Biometal Heavy Treads High-density Centrium Wheel (fused) High-density Centrium Wheel > --- UTILITY (12) ----- Experimental Cooling System Large Storage Unit Spectral Analyzer Improved Targeting Computer A0-MCA's Component Scanner > --- WEAPON (4) ------- Heavy Dispersion Rifle Enhanced Gamma Bomb Array > --- INVENTORY (15) --- High-density Centrium Wheel Advanced Matter Compressor (400) Dimensional Node Initializer Dimensional Node Initializer Transdimensional Reconstructor High-powered Transdimensional Reconstructor Stasis Projector Sigix Containment Pod Peak State ------------ > --- POWER ------------ Micro Antimatter Reactor Light Quantum Reactor > --- PROPULSION ------- Biometal Heavy Treads High-density Centrium Wheel High-density Centrium Wheel High-density Centrium Wheel > --- UTILITY ---------- Advanced Heat Sink Experimental Cooling System Large Storage Unit Experimental Energy Well Spectral Analyzer Improved Targeting Computer Advanced Target Analyzer Particle Accelerator Phase Armor System Shield A0-MCA's Component Scanner > --- WEAPON ----------- Heavy Dispersion Rifle Heavy Dispersion Rifle Enhanced Nova Cannon Enhanced Gamma Bomb Array > --- INVENTORY -------- Micro Antimatter Reactor High-density Centrium Wheel Experimental Cooling System Advanced Matter Compressor Improved Medium Armor Plating Improved Medium Armor Plating Dimensional Node Initializer Dimensional Node Initializer Transdimensional Reconstructor High-powered Transdimensional Reconstructor High-powered Transdimensional Reconstructor Heavy Dispersion Rifle Stasis Projector Sigix Containment Pod [Rating: 203] Favorites ----------- Power Micro Antimatter Reactor Engine Makeshift Power Source Power Core Neutrino Core Reactor Micro Antimatter Reactor Propulsion High-density Centrium Wheel Treads Advanced Treads Leg Carbon-fiber Leg Wheel High-density Centrium Wheel Hover Unit Combat Gravmag System Flight Unit Cooled Field Propulsion Drive Utility A0-MCA's Component Scanner Device Advanced Weapon Cycler Storage Large Storage Unit Processor A0-MCA's Component Scanner Hackware Advanced Hacking Suite Protection Reflective Plating Artifact Phase Armor Weapon Advanced Beam Cannon Energy Gun Salvaging Laser Energy Cannon Advanced Beam Cannon Ballistic Gun Minigun Ballistic Cannon Magnetic Acceleration Cannon Launcher Enhanced Gamma Bomb Array Special Weapon CPS Tube Impact Weapon Powered Hammer Slashing Weapon Power Sword Piercing Weapon Plasma Lance Build | -11 -10 -10 -10 -8 -8 -6 -6 -5 -4 -4 -4 -4 -3 -3 -2 -2 ------- Run | Yrd Mat Min Sub Rec Scr Fac DSF Fac Fac Gar Fac Gar Res Tes Res Qua Slots Evolved 16 | . . . . . . 8 . 2 2 . . . 2 . 2 . Power 1 | . . . . . . . . . 1 . . . . . . . Propulsion 3 | . . . . . . 2 . . 1 . . . . . . . Utility 10 | . . . . . . 4 . 2 . . . . 2 . 2 . Weapon 2 | . . . . . . 2 . . . . . . . . . . Parts Attached 298 | 2 10 . 15 4 7 9 15 11 34 8 4 5 12 38 71 53 Power 52 | . 2 . 3 . . 1 1 1 9 1 1 1 1 6 14 11 Engine 12 | . 2 . 3 . . . . 1 1 . . . . 1 3 1 Core 5 | . . . . . . 1 1 . 2 . . . . . . 1 Reactor 35 | . . . . . . . . . 6 1 1 1 1 5 11 9 Propulsion 72 | 2 3 . 5 1 1 1 7 3 13 . . 1 4 11 15 5 Treads 11 | 2 . . . 1 . . 2 1 . . . . . 3 1 1 Leg 13 | . . . . . . . 5 1 . . . . 3 . 2 2 Wheel 31 | . 3 . 5 . 1 . . . . . . . . 8 12 2 Hover 9 | . . . . . . . . 1 8 . . . . . . . Flight 8 | . . . . . . 1 . . 5 . . 1 1 . . . Utility 95 | . 3 . 2 3 2 5 4 5 4 3 2 1 6 12 22 21 Device 47 | . 2 . 1 . . 1 2 1 3 2 1 1 3 5 11 14 Storage 9 | . 1 . . 2 1 . 1 . 1 . . . . 1 1 1 Processor 19 | . . . . . 1 2 . 1 . 1 1 . 3 2 6 2 Hackware 7 | . . . . . . . . 3 . . . . . 1 3 . Protection 12 | . . . 1 1 . 2 1 . . . . . . 3 1 3 Artifact 1 | . . . . . . . . . . . . . . . . 1 Weapon 79 | . 2 . 5 . 4 2 3 2 8 4 1 2 1 9 20 16 Energy Gun 29 | . . . 1 . 2 . 2 . 3 1 . 2 . 3 4 11 Energy Cannon 13 | . 2 . 2 . . . . . 1 . . . . 2 3 3 Ballistic Gun 24 | . . . 1 . 1 . . . 3 3 . . . 3 13 . Ballistic Cannon 1 | . . . . . . 1 . . . . . . . . . . Launcher 3 | . . . . . . . 1 . . . . . 1 . . 1 Special Weapon 5 | . . . . . 1 1 . 1 . . 1 . . . . 1 Impact Weapon 1 | . . . . . . . . 1 . . . . . . . . Slashing Weapon 2 | . . . 1 . . . . . 1 . . . . . . . Piercing Weapon 1 | . . . . . . . . . . . . . . 1 . . Special Melee Weapon . | . . . . . . . . . . . . . . . . . Unidentified Prototypes 3 | . 1 . . . . . . . . . . . . . . 2 Parts Lost 134 | . . . 7 . . . 4 11 16 . . 5 8 3 46 34 Power 24 | . . . 2 . . . . 2 4 . . . 2 . 9 5 Propulsion 30 | . . . 1 . . . 3 3 5 . . 2 2 1 8 5 Utility 40 | . . . . . . . . 1 5 . . . 4 . 14 16 Weapon 40 | . . . 4 . . . 1 5 2 . . 3 . 2 15 8 Highest Loss Streak 13 | . . . 2 . . . 2 10 12 . . 5 6 1 13 11 To Critical Strikes 1 | . . . . . . . . . . . . . . . 1 . Average Backups 12 | . 16 25 21 10 13 13 13 10 7 9 9 9 8 8 8 12 Power . | . . 3 1 . . . . . . . 1 1 1 . 1 . Propulsion 3 | . 8 11 6 2 2 . . . 1 1 1 1 . 3 3 1 Utility 5 | . 5 8 8 5 6 6 7 5 4 5 5 6 6 4 2 5 Weapon 1 | . 1 3 4 . . 1 1 . . 1 2 1 . 1 1 1 Tool/Special . | . . . . . . . . . . . . . . . . . Unused Backups 103 | . 6 . 23 4 10 1 4 8 3 5 2 . 1 2 7 27 Power 5 | . . . 1 . . . 1 . . . . . . . 3 . Propulsion 24 | . 3 . 6 1 3 . . . 2 2 . . . 2 2 3 Utility 47 | . 2 . 8 . 6 1 3 5 1 3 2 . 1 . 1 14 Weapon 17 | . 1 . 8 3 1 . . . . . . . . . 1 3 Tool/Special 10 | . . . . . . . . 3 . . . . . . . 7 Average Slot Usage (%) 93 | . 93 100 98 97 99 86 95 85 93 79 88 86 72 88 93 94 Engine 6 | . 12 14 13 14 14 4 . 1 . . . . . . . . Reactor 3 | . . . . . . . . . 7 4 5 5 3 6 7 6 Treads 2 | . 1 . . 11 9 . 5 . . . . . . 2 1 1 Leg 1 | . . . . . . . 13 13 . . . . 2 3 1 . Wheel 15 | . 26 28 28 16 18 13 3 . . . . . . 12 16 18 Hover 1 | . . . . . . . . 3 23 . . . . . . . Flight 2 | . . . . . . 4 . . . 26 26 25 19 1 . . Device 10 | . 15 14 12 . . 5 5 7 3 8 9 10 9 11 18 18 Storage 8 | . 10 14 12 12 14 6 6 2 2 5 5 5 4 4 5 7 Processor 12 | . . . . . 7 19 20 18 20 20 21 21 25 25 17 15 Hackware 2 | . . . . . . . . 12 12 5 5 5 3 . 6 4 Protection 2 | . . . 1 12 6 6 6 . . . . . . 2 1 2 Energy Gun 5 | . . . 3 . 11 6 10 13 1 2 5 6 1 3 1 10 Energy Cannon 8 | . 26 28 21 28 9 . . . . . . . . 3 3 3 Ballistic Gun 3 | . . . . . 7 6 4 . 9 1 . . . 3 8 . Peak Build Rating 203 | 2 15 15 19 21 26 56 68 81 117 108 116 120 113 171 184 203 Average Rating 84 | 1 13 15 17 19 22 50 62 73 105 97 108 109 99 141 164 173 On Entrance 62 | . 2 15 15 16 21 25 56 67 76 73 104 111 94 86 167 141 Naked Turns 1 | . 1 . . . . . . . . . . . . . . . Heaviest Build 130 | . 95 95 99 40 40 49 113 113 57 38 34 42 34 67 86 130 Greatest Support 100 | 3 32 32 40 26 20 20 72 72 68 35 35 50 50 76 100 100 Greatest Overweight (x) 5 | . 2 2 3 3 3 2 5 1 2 1 . 1 3 1 1 2 Average Overweight (x) . | . 1 2 2 2 2 1 1 . . . . . . . . . Largest Inventory Capacity 25 | 5 25 25 25 15 15 15 25 25 10 10 10 10 10 10 10 15 Average Capacity 14 | 5 19 25 23 12 15 15 15 16 7 10 10 10 10 10 10 14 Most Carried 25 | . 25 25 25 15 15 15 15 20 10 10 10 10 10 10 10 15 Average Carried 13 | . 16 25 22 12 14 14 14 11 7 9 9 9 9 9 9 13 Final Capacity 25 | 5 25 25 5 15 15 15 25 5 10 10 10 10 10 10 10 15 Final Carried 25 | . 25 25 5 15 15 15 15 5 7 10 10 9 10 10 8 9 Class Distribution -------------------- 48% | Mutant 13% | Scavenger-Gunner 11% | Scavenger-Tank 8% | Hacker-Gunner 5% | Tank 5% | Commander-Sprinter 3% | Hacker-Mutant Dominant Class ---------------- Mutant | -10/Materials Mutant | -10/Mines Mutant | -10/Subcaves Mutant | -8/Recycling Mutant | -8/Scraptown Tank | -6/Factory Scavenger-Tank | -6/DSF Hacker-Mutant | -5/Factory Hacker-Gunner | -4/Factory Commander-Sprinter | -4/Garrison Commander-Sprinter | -4/Factory Commander-Sprinter | -4/Garrison Sprinter | -3/Research Mutant | -3/Testing Hacker-Gunner | -2/Research Scavenger-Tank | -2/Quarantine Resources | -11 -10 -10 -10 -8 -8 -6 -6 -5 -4 -4 -4 -4 -3 -3 -2 -2 ----------- Run | Yrd Mat Min Sub Rec Scr Fac DSF Fac Fac Gar Fac Gar Res Tes Res Qua Matter Collected 9119 | 79 238 . 320 40 144 . 375 211 942 142 100 35 8 1698 3111 1676 Remotely . | . . . . . . . . . . . . . . . . . Salvage Created 15933 | . 780 . 545 58 . . 574 362 1370 152 115 . 18 2467 5692 3800 Parts 761 | . 28 . 33 1 . . 37 19 65 4 2 . 1 115 265 191 Haulers Intercepted 14 | . 2 . . . . . . . 3 . 1 . . 2 4 2 Recyclers Shooed 5 | . 1 . . 1 . . . . . . . . . 3 . . Parts Field Recycled . | . . . . . . . . . . . . . . . . . Retrieved Matter . | . . . . . . . . . . . . . . . . . Parts Self-Destructed 18 | . . . 18 . . . . . . . . . . . . . Prevented . | . . . . . . . . . . . . . . . . . Kills | -11 -10 -10 -10 -8 -8 -6 -6 -5 -4 -4 -4 -4 -3 -3 -2 -2 ------- Run | Yrd Mat Min Sub Rec Scr Fac DSF Fac Fac Gar Fac Gar Res Tes Res Qua Combat Hostiles Destroyed 199 | . 5 . 12 . . . 11 7 15 . . . . 34 67 48 Melee 3 | . . . . . . . . . . . . . . 1 1 1 Guns 111 | . . . 4 . . . 5 3 15 . . . . 15 47 22 Cannons 61 | . 5 . 8 . . . 3 . . . . . . 12 15 18 AOE 13 | . . . . . . . 2 3 . . . . . 6 . 2 Classes Destroyed 22 | . 6 . 4 . . . 3 1 2 . . . . 5 . 1 Worker 22 | . 4 . . . . . . 1 1 . . . 2 3 7 4 Builder 17 | . 1 . . . . . . 1 . . . . . 5 9 1 Hauler 14 | . 2 . . . . . . . 3 . 1 . . 2 4 2 Recycler 7 | . 4 . . . . . . . . . . . . 1 2 . Operator 4 | . . . . . . . . . . . . . . 3 . 1 Watcher 13 | . 2 . . . . . . 1 1 . . . . 2 5 2 Swarmer 36 | . . . 2 . . . 3 4 4 . . . . 5 18 . Saboteur 5 | . . . . . . . . . . . . . . 1 1 3 Grunt 80 | . 5 . 2 . . . 5 1 6 . . . . 15 28 18 Brawler 3 | . . . . . . . . . 1 . . . . . 1 1 Duelist 4 | . . . . . . . 1 . 1 . . . . 1 . 1 Researcher 4 | . . . . . . . . . . . . . . 2 . 2 Sentry 9 | . . . . . . . . 2 2 . . . . . 3 2 Specialist 1 | . . . . . . . 1 . . . . . . . . . Hunter 6 | . . . . . . . . . . . . . . 2 4 . Programmer 43 | . . . . . . . . . 1 . . . . 8 12 22 Heavy 1 | . . . . . . . 1 . . . . . . . . . Q-Series 1 | . . . . . . . . . . . . . . . . 1 Striker 2 | . . . . . . . . . . . . . . 2 . . Artisan 1 | . . . 1 . . . . . . . . . . . . . Cobbler 1 | . . . 1 . . . . . . . . . . . . . Subdweller 8 | . . . 8 . . . . . . . . . . . . . Best Kill Streak 13 | . 7 . 2 . . . 3 4 7 . 1 . 2 13 9 5 Combat Bots Only 9 | . 3 . 2 . . . 3 4 7 . . . . 9 6 5 Max Kills in Single Turn 4 | . 1 . 1 . . . 2 2 1 . 1 . 1 4 2 2 Gunslinging 1 | . . . . . . . . . . . . . . . . 1 Exploded 3 | . . . . . . . 2 2 . . . . . 3 . 2 Melee 1 | . . . . . . . . . . . . . . 1 1 1 Uniques/NPCs Destroyed . | . . . . . . . . . . . . . . . . . Combat | -11 -10 -10 -10 -8 -8 -6 -6 -5 -4 -4 -4 -4 -3 -3 -2 -2 -------- Run | Yrd Mat Min Sub Rec Scr Fac DSF Fac Fac Gar Fac Gar Res Tes Res Qua Hostile Shots Fired 1867 | . 26 . 88 . . . 65 69 207 . 4 49 76 181 556 546 Missed 587 | . 7 . 25 . . . 15 26 85 . 4 13 28 45 154 185 Hits 1280 | . 19 . 63 . . . 50 43 122 . . 36 48 136 402 361 Melee 18 | . . . . . . . 4 . 3 . . . . 6 4 1 Projectile 1262 | . 19 . 63 . . . 46 43 119 . . 36 48 130 398 360 Critical Strikes 79 | . . . 1 . . . 4 1 8 . . . 5 12 22 26 Part Disruptions 6 | . . . . . . . . . . . . . . 3 2 1 Damage Taken 26454 | 1 276 . 896 . . . 1051 1443 2456 10 47 607 949 3347 7850 7521 Core 3583 | . 52 . 177 . . . 68 581 491 . . 119 304 327 920 544 Absorbed by Shields 1497 | . . . . . . . . . 171 . . 49 . . 442 835 Reduced by Siege Mode 372 | . . . . . . . . . . . . . . 317 . 55 Ignored by Resistances 846 | . . . . . . . 46 . . . . . . . 645 155 Regen/Repaired (Parts) 23 | . . . . . . . . . . . 23 . . . . . Core Remaining (%) 56 | 100 . . . . 8 . 92 41 . . . 46 . 51 . . Volleys Fired 856 | . 46 . 124 3 . 2 31 24 45 5 5 9 6 136 246 174 Largest 4 | . 2 . 2 2 . 2 4 4 3 1 1 3 1 4 4 4 Hottest 413 | . 136 . 148 148 . 55 168 212 185 94 94 282 46 342 373 413 Shots Fired 1960 | . 78 . 177 6 . 3 92 54 115 7 5 14 6 249 695 459 Gun 1322 | . . . 21 . . 2 61 44 115 7 5 14 . 155 553 345 Cannon 616 | . 78 . 156 6 . 1 28 4 . . . . . 89 142 112 Launcher 19 | . . . . . . . 1 5 . . . . 6 5 . 2 Special 3 | . . . . . . . 2 1 . . . . . . . . Kinetic 719 | . . . 10 . . 2 57 4 100 1 . . . 76 444 25 Thermal 1072 | . 78 . 156 6 . 1 32 44 15 6 5 14 . 168 181 366 Explosive 11 | . . . . . . . . . . . . . 6 5 . . Electromagnetic 155 | . . . 11 . . . 1 5 . . . . . . 70 68 Robot Hit Streak 36 | . 11 . 15 9 . . 18 14 21 16 1 8 . 36 13 15 Robot Miss Streak 9 | . 2 . 3 1 . . 2 2 3 . 2 2 . 4 9 7 Penetration Max 2 | . . . . . . . . . 1 . . . . 2 2 . Secondary Targets 16 | . . . . . . . . . 2 . . . . 1 11 2 Max Gunslinging Chain 1 | . . . . . . . . . 1 . . . . 1 1 1 Shots Hit Robots 1228 | . 54 . 61 4 . . 69 39 87 13 2 10 . 184 413 292 Core Hits 557 | . 19 . 25 . . . 31 23 44 5 2 1 10 97 183 117 Critical Kills 67 | . 1 . . . . . . . 13 . . . . 17 22 14 Critical Parts Destroyed 106 | . . . . . . . . . 15 . . . . 29 37 25 Critical Strikes 207 | . 1 . . . . . . 1 30 . . . . 54 68 53 Burn 15 | . . . . . . . . 1 . . . . . 6 4 4 Meltdown 9 | . 1 . . . . . . . . . . . . 1 3 4 Destroy 171 | . . . . . . . . . 30 . . . . 47 58 36 Corrupt 12 | . . . . . . . . . . . . . . . 3 9 Melee Attacks 127 | . . . 17 . . . . . 11 70 18 7 . 4 . . Impact 6 | . . . . . . . . . 6 . . . . . . . Slashing 117 | . . . 17 . . . . . 5 70 18 7 . . . . Piercing 4 | . . . . . . . . . . . . . . 4 . . Sneak Attacks 4 | . . . . . . . . . 3 . 1 . . . . . Combat Hostiles . | . . . . . . . . . . . . . . . . . Follow-up Attacks . | . . . . . . . . . . . . . . . . . Damage Inflicted 37864 | 3 1176 . 1030 86 . . 1394 944 1268 1081 128 288 230 6630 13150 10456 Guns 21542 | . . . 183 . . . 620 603 815 . 29 288 . 2681 9559 6764 Cannons 12154 | . 1176 . 847 86 . . 695 28 . . . . . 2503 3575 3244 Explosions 2538 | . . . . . . . 79 313 57 . . . 230 1411 . 448 Melee 1556 | . . . . . . . . . 396 1061 99 . . . . . Ramming 74 | 3 . . . . . . . . . 20 . . . 35 16 . Kinetic 10314 | . . . 103 . . . 1066 28 577 . . . . 617 7624 299 Thermal 21420 | . 1176 . 847 86 . . 249 824 238 . 29 288 . 4926 4206 8551 Explosive 1339 | . . . . . . . . . 57 . . . 230 1052 . . Electromagnetic 3161 | . . . 80 . . . 79 92 . . . . . . 1304 1606 Impact 194 | . . . . . . . . . 194 . . . . . . . Slashing 1362 | . . . . . . . . . 202 1061 99 . . . . . Piercing . | . . . . . . . . . . . . . . . . . Highest Corruption 42 | . . . . . . . 2 . 1 3 3 4 . 18 23 42 Average Corruption 13 | . . . . . . . 2 . 1 2 3 3 . 11 15 24 Corruption Purged 4 | . . . . . . . . . . . . . . . 4 . Corruption Blocked . | . . . . . . . . . . . . . . . . . Effects 235 | . . . . . . . 5 . 2 17 6 2 . 29 67 107 Message Errors 44 | . . . . . . . 1 . 1 5 3 . . 6 8 20 Matter Fused 49 | . . . . . . . 2 . . 2 1 1 . 7 19 17 Heat Flow Errors 22 | . . . . . . . . . . 1 . 1 . 5 6 9 Energy Discharges 16 | . . . . . . . 1 . . 1 . . . 1 6 7 Parts Rejected 5 | . . . . . . . . . . . . . . 1 . 4 Parts Fused 2 | . . . . . . . . . . 1 . . . . . 1 Data Loss (minor) 23 | . . . . . . . . . 1 2 2 . . 3 5 10 Data Loss (major) 11 | . . . . . . . . . . 2 . . . 1 4 4 Misfires 11 | . . . . . . . . . . 2 . . . 2 2 5 Alerts 6 | . . . . . . . . . . 1 . . . 1 2 2 Misdirections 7 | . . . . . . . . . . . . . . . 3 4 Weapon Failures 39 | . . . . . . . 1 . . . . . . 2 12 24 Overload Shots . | . . . . . . . . . . . . . . . . . Overflow Damage 688 | . 51 . . 16 . . . 49 80 227 . . . 177 30 58 Projectiles 310 | . 51 . . 16 . . . . . . . . . 155 30 58 Explosions 71 | . . . . . . . . 49 . . . . . 22 . . Melee 307 | . . . . . . . . . 80 227 . . . . . . Knockbacks 9 | . . . . . . . 9 . . . . . . . . . Impact . | . . . . . . . . . . . . . . . . . Kinetic 8 | . . . . . . . 8 . . . . . . . . . Secondary 1 | . . . . . . . 1 . . . . . . . . . Self-Inflicted Damage 335 | 1 . . . . . . . . . 10 . . 37 254 8 25 Shots 6 | . . . . . . . . . . . . . 1 3 . 2 Rammed 4 | 1 . . . . . . . . . 1 . . . . 2 . Targets Rammed 10 | 1 . . . . . . . . . 1 . . . 6 2 . Kicked 6 | . . . . . . . . . . . . . . 6 . . Crushed . | . . . . . . . . . . . . . . . . . Highest Temperature 422 | . 405 . . 204 . 10 306 114 328 170 109 422 115 400 396 372 Average Temperature 96 | . 100 . . 86 . 7 76 45 96 65 51 110 46 104 112 86 Received Heat Transfer 3396 | . 153 . 204 . . . 288 72 461 . . 92 195 404 565 962 Effects 6 | . 1 . . . . . 1 . 1 . . . . 1 2 . Energy Bleed 3 | . 1 . . . . . . . 1 . . . . 1 . . Interference 2 | . . . . . . . . . . . . . . . 2 . Matter Decay 1 | . . . . . . . 1 . . . . . . . . . Siege Activations 5 | . . . . . . . . . . . . . . 4 . 1 Total Turns 119 | . . . . . . . . . . . . . . 90 . 29 Longest Duration 46 | . . . . . . . . . . . . . . 46 . 29 Martial Activations . | . . . . . . . . . . . . . . . . . Shielding Activations . | . . . . . . . . . . . . . . . . . Robots Disrupted 1 | . . . . . . . . . . . . . . 1 . . Combat Hostiles . | . . . . . . . . . . . . . . . . . Robots Corrupted 4 | . . . . . . . . . . . . . . . 2 2 Combat Hostiles 4 | . . . . . . . . . . . . . . . 2 2 Parts Fried 13 | . . . . . . . . . . . . . . . 4 9 Impact Corruptions 2 | . . . . . . . . . 2 . . . . . . . Robots Melted 11 | . 1 . . . . . 1 1 . . . . . 1 3 4 Combat Hostiles 8 | . . . . . . . 1 1 . . . . . 1 2 3 Parts Melted 52 | . 6 . 4 . . . 1 5 . . . . . 13 6 17 Heat Transferred 23193 | . 2146 . 1517 148 . . 662 1410 446 . 37 370 . 3561 3922 8974 Parts Sabotaged 9 | . . . . . . . . . . . . . . 2 6 1 Parts Stolen . | . . . . . . . . . . . . . . . . . Parts Stripped . | . . . . . . . . . . . . . . . . . Power Chain Reactions 4 | . . . . . . . . 1 . . . . . 3 . . Alert | -11 -10 -10 -10 -8 -8 -6 -6 -5 -4 -4 -4 -4 -3 -3 -2 -2 ------- Run | Yrd Mat Min Sub Rec Scr Fac DSF Fac Fac Gar Fac Gar Res Tes Res Qua Maximum Alert Level 5 | . . . . . . . 1 2 1 2 3 3 1 3 5 5 Low Security (%) 26 | 100 100 100 . 100 . 100 91 10 25 4 . . . 47 . . Level 1 17 | . . . . . . . 8 86 74 37 23 . 100 2 . . Level 2 11 | . . . . . . . . 3 . 57 64 97 . 12 11 . Level 3 26 | . . . . . . . . . . . 12 2 . 37 56 44 Level 4 11 | . . . . . . . . . . . . . . . 22 34 Level 5 6 | . . . . . . . . . . . . . . . 8 21 High Security . | . . . . . . . . . . . . . . . . . Max Security . | . . . . . . . . . . . . . . . . . Sterilizations 1 | . . . . . . . 1 . . . . . . . . . Peak Influence 1957 | . 98 . . 60 . 10 207 415 347 656 843 713 371 1091 1824 1957 Initial 1026 | . . . . . . . 2 108 147 134 344 583 342 201 595 1026 Average 650 | . 40 . . 13 . . 82 266 248 431 465 625 311 473 1010 1330 Influence Increases 9390 | . 234 . 100 102 . 35 245 582 561 522 759 155 206 1438 2611 1840 Destroy 0b10 Robot/C 4380 | . 100 . 80 . . . 220 140 300 . 340 80 . 720 1400 1000 Destroy 0b10 Robot/NC 415 | . 65 . . 5 . . 5 15 25 5 5 . 10 85 145 50 Destroy Leader 704 | . 38 . 20 . . . 20 32 48 . 72 . . 98 218 158 Allied During Kill 250 | . . . . . . . . . . . 167 32 . 2 49 . Trap Triggered on 0b10 10 | . . . . . . . . . 10 . . . . . . . Successful Hack 208 | . . . . 5 . 20 . 23 20 24 7 . 10 . 61 38 Select Force Hacks 120 | . 30 . . 90 . . . . . . . . . . . . Disable Machine 675 | . . . . . . 15 . 75 60 . 15 . . 255 75 180 Anti-Garrison Action 550 | . . . . . . . . 200 . 350 . . . . . . Destroy Structure 1013 | . 1 . . 2 . . . 52 68 143 48 28 96 218 228 129 Partial Spotted 135 | . . . . . . . . . . . 60 . . 30 45 . Lose Combat Pursuer 930 | . . . . . . . . 45 30 . 45 15 90 30 390 285 Influence Decreases 7486 | . 231 3 100 102 . 31 42 489 669 58 582 380 456 737 1846 1760 Entered New Map 2562 | . . 3 . . . . 2 99 153 58 312 250 266 157 464 798 Time Decay 3102 | . 231 . 78 102 . 31 . 270 356 . 150 . 110 530 622 622 Lost Part 1292 | . . . 22 . . . 40 110 160 . . 50 80 30 460 340 Lost Ally 380 | . . . . . . . . 10 . . 120 80 . 20 150 . Purge Threat 150 | . . . . . . . . . . . . . . . 150 . Squads Dispatched 61 | . 1 . . . . 1 1 8 4 . 4 . 2 7 16 17 Investigation 10 | . 1 . . . . . . 2 1 . 1 . 1 . 3 1 Extermination 21 | . . . . . . 1 . 2 2 . . . . 3 4 9 Reinforcement 19 | . . . . . . . 1 4 1 . 2 . 1 2 4 4 Assault 10 | . . . . . . . . . . . . . . 2 5 3 Garrison 1 | . . . . . . . . . . . 1 . . . . . Intercept . | . . . . . . . . . . . . . . . . . Searches Triggered . | . . . . . . . . . . . . . . . . . Construction Impeded 5 | . . . . . . . . . . . 1 . . 1 2 1 Haulers Reinforced 3 | . . . . . . . . . 1 . . . . . 1 1 Active Scanning Responses . | . . . . . . . . . . . . . . . . . Cargo Convoy Interrupts . | . . . . . . . . . . . . . . . . . Stealth | -11 -10 -10 -10 -8 -8 -6 -6 -5 -4 -4 -4 -4 -3 -3 -2 -2 --------- Run | Yrd Mat Min Sub Rec Scr Fac DSF Fac Fac Gar Fac Gar Res Tes Res Qua Distress Signals 14 | . 1 . . . . . . 1 4 . . . . 1 5 2 Communications Jammed 51 | . . . . . . . . . . . . . . . 51 . Distress Signals 50 | . . . . . . . . . . . . . . . 50 . Times Spotted 379 | . 8 . 20 . . . 12 14 39 . 14 15 11 47 104 95 Peak Tracking Total 13 | . 5 . 6 . . . 4 6 13 . 5 10 6 8 10 11 Tactical Retreats 32 | . . . . . . . . 2 2 . 1 1 4 2 12 8 Traps | -11 -10 -10 -10 -8 -8 -6 -6 -5 -4 -4 -4 -4 -3 -3 -2 -2 ------- Run | Yrd Mat Min Sub Rec Scr Fac DSF Fac Fac Gar Fac Gar Res Tes Res Qua Traps Triggered 12 | . 1 . . . . 1 1 1 . 1 . 3 . 1 . 3 Indirectly 1 | . . . . . . . 1 . . . . . . . . . Trap Hack Attempts . | . . . . . . . . . . . . . . . . . Triggered . | . . . . . . . . . . . . . . . . . Disarmed . | . . . . . . . . . . . . . . . . . Reprogrammed 12 | . . . . . . . . . 12 . . . . . . . Reused 1 | . . . . . . . . . 1 . . . . . . . Traps Extracted . | . . . . . . . . . . . . . . . . . Installed . | . . . . . . . . . . . . . . . . . Triggered 1 | . . . . . . . . . 1 . . . . . . . Machines | -11 -10 -10 -10 -8 -8 -6 -6 -5 -4 -4 -4 -4 -3 -3 -2 -2 ---------- Run | Yrd Mat Min Sub Rec Scr Fac DSF Fac Fac Gar Fac Gar Res Tes Res Qua Machines Disabled 48 | . . . 1 . . 1 . 5 4 2 1 . . 17 5 12 Max in Single Turn 5 | . . . 1 . . 1 . 5 1 1 . . . 3 1 1 Garrison Access 4 | . . . . . . . . 1 . . . . . 1 2 . Garrison Relay 2 | . . . . . . . . . . 2 . . . . . . Machines Repaired . | . . . . . . . . . . . . . . . . . Machines Dismantled . | . . . . . . . . . . . . . . . . . Machines Sabotaged . | . . . . . . . . . . . . . . . . . Overloaded Fab Kills . | . . . . . . . . . . . . . . . . . Hacking | -11 -10 -10 -10 -8 -8 -6 -6 -5 -4 -4 -4 -4 -3 -3 -2 -2 --------- Run | Yrd Mat Min Sub Rec Scr Fac DSF Fac Fac Gar Fac Gar Res Tes Res Qua Machines Accessed 68 | . 1 . 2 4 5 4 . 7 6 3 4 1 5 4 15 7 Terminals 37 | . . . . 1 . 3 . 4 3 3 2 1 4 2 7 7 Fabricators 3 | . . . . . . . . 1 . . . . . 1 1 . Repair Stations 2 | . . . . . . . . 1 . . 1 . . . . . Recycling Units 10 | . 1 . . 3 . . . . 1 . . . 1 . 4 . Scanalyzers 3 | . . . . . . 1 . . 1 . . . . . 1 . Garrison Access 6 | . . . . . . . . 1 1 . 1 . . 1 2 . Total Hacks 194 | . 1 . 6 11 51 12 . 22 18 7 12 2 7 7 29 9 Successful 141 | . 1 . 6 9 51 6 . 17 14 2 8 1 2 2 18 4 Failed 53 | . . . . 2 . 6 . 5 4 5 4 1 5 5 11 5 Catastrophic 12 | . . . . . . . . 1 . 2 1 . 2 1 2 3 Database Lockouts . | . . . . . . . . . . . . . . . . . Manual 73 | . 1 . . 6 . 7 . 13 6 2 7 . 2 6 16 7 Terminals 84 | . . . . 3 . 10 . 14 10 7 5 2 6 3 15 9 Fabricators 6 | . . . . . . . . 4 . . . . . 1 1 . Repair Stations 3 | . . . . . . . . 1 . . 2 . . . . . Recycling Units 19 | . 1 . . 8 . . . . 3 . . . 1 . 6 . Scanalyzers 8 | . . . . . . 2 . . 4 . . . . . 2 . Garrison Access 17 | . . . . . . . . 3 1 . 5 . . 3 5 . Terminal Hacks 83 | . . . 6 1 51 2 . 6 5 2 2 1 1 . 3 3 Record 50 | . . . 5 . 43 . . . . . . . . . . 2 Robot Analysis 12 | . . . . 1 8 . . 3 . . . . . . . . Open Door 2 | . . . . . . . . . . . . . . . 1 1 Open DSF 2 | . . . . . . 1 . . 1 . . . . . . . Branch Access Points 1 | . . . . . . . . . . . 1 . . . . . Terminal Index 2 | . . . . . . 1 . . . . 1 . . . . . Unreport Threat 1 | . . . . . . . . . . . . . . . 1 . Locate Traps 4 | . . . . . . . . 1 1 . . . 1 . 1 . Reprogram Traps 2 | . . . . . . . . . 2 . . . . . . . Recall Investigation 1 | . . . . . . . . 1 . . . . . . . . Recall Reinforcements 1 | . . . . . . . . 1 . . . . . . . . Zone Layout 1 | . . . . . . . . . 1 . . . . . . . Patrol Navigation 2 | . . . . . . . . . . 1 . 1 . . . . Security Stations 1 | . . . . . . . . . . 1 . . . . . . Proto ID Catalog 1 | . . . 1 . . . . . . . . . . . . . Fabricator Hacks 2 | . . . . . . . . 2 . . . . . . . . Network Status 1 | . . . . . . . . 1 . . . . . . . . Build 1 | . . . . . . . . 1 . . . . . . . . Repair Station Hacks 3 | . . . . . . . . 1 . . 2 . . . . . Scan Component 1 | . . . . . . . . . . . 1 . . . . . Repair 1 | . . . . . . . . . . . 1 . . . . . Refit 1 | . . . . . . . . 1 . . . . . . . . Recycling Unit Hacks 7 | . . . . 4 . . . . 2 . . . . . 1 . Report Inventory 1 | . . . . . . . . . 1 . . . . . . . Retrieve Components 6 | . . . . 4 . . . . 1 . . . . . 1 . Scanalyzer 7 | . . . . . . 2 . . 3 . . . . . 2 . Insert Component 4 | . . . . . . 1 . . 2 . . . . . 1 . Analyze 3 | . . . . . . 1 . . 1 . . . . . 1 . Garrison Access Hacks 5 | . . . . . . . . . 1 . 1 . . 1 2 . Unlock Access 2 | . . . . . . . . . 1 . 1 . . . . . Seal Access 3 | . . . . . . . . . . . . . . 1 2 . Unauthorized Hacks 34 | . 1 . . 4 . 2 . 8 3 . 3 . 1 1 10 1 Terminals 18 | . . . . 1 . 2 . 5 2 . 1 . . . 6 1 Track 1 | . . . . . . . . . . . . . . . . 1 Assimilate 1 | . . . . . . . . . . . . . . . 1 . Botnet 10 | . . . . 1 . 1 . 3 1 . 1 . . . 3 . Disrupt 4 | . . . . . . . . 2 1 . . . . . 1 . Operators 2 | . . . . . . 1 . . . . . . . . 1 . Fabricators 2 | . . . . . . . . 2 . . . . . . . . Report 1 | . . . . . . . . 1 . . . . . . . . Fabnet 1 | . . . . . . . . 1 . . . . . . . . Repair Stations . | . . . . . . . . . . . . . . . . . Recycling Units 9 | . 1 . . 3 . . . . 1 . . . 1 . 3 . Tunnel 4 | . 1 . . 3 . . . . . . . . . . . . Fedlink 4 | . . . . . . . . . 1 . . . 1 . 2 . Scrapoids 1 | . . . . . . . . . . . . . . . 1 . Scanalyzers . | . . . . . . . . . . . . . . . . . Garrison Access 5 | . . . . . . . . 1 . . 2 . . 1 1 . Broadcast 2 | . . . . . . . . . . . 1 . . 1 . . Redirect 2 | . . . . . . . . . . . 1 . . . 1 . Jam 1 | . . . . . . . . 1 . . . . . . . . Data Cores Recovered . | . . . . . . . . . . . . . . . . . Used . | . . . . . . . . . . . . . . . . . Hacking Detections 47 | . . . . 1 . 4 . 6 5 3 3 1 4 3 13 4 Full Trace Events 4 | . . . . 1 . . . 1 . 1 1 . . . . . Feedback Events . | . . . . . . . . . . . . . . . . . Feedback Blocked . | . . . . . . . . . . . . . . . . . Robot Schematics Acquired 2 | . . . . . . . . . . . . . . 1 . 1 Robots Built 1 | . . . . . . . . 1 . . . . . . . . Authchips . | . . . . . . . . . . . . . . . . . Time 169 | . . . . . . . . 169 . . . . . . . . Total Robot Build Rating 6 | . . . . . . . . 6 . . . . . . . . Part Schematics Acquired 10 | . . . . . . 1 . . 1 . . . . 1 1 6 Parts Built . | . . . . . . . . . . . . . . . . . Authchips . | . . . . . . . . . . . . . . . . . Time . | . . . . . . . . . . . . . . . . . Total Part Build Rating . | . . . . . . . . . . . . . . . . . Parts Repaired 1 | . . . . . . . . . . . 1 . . . . . Time 50 | . . . . . . . . . . . 50 . . . . . Parts Recycled . | . . . . . . . . . . . . . . . . . Recycled Matter . | . . . . . . . . . . . . . . . . . Retrieved Matter . | . . . . . . . . . . . . . . . . . Retrieved Components 19 | . . . . 6 . . . . 3 . . . . . 10 . Parts Scanalyzed 3 | . . . . . . 1 . . 1 . . . . . 1 . Part Schematics Acquired 3 | . . . . . . 1 . . 1 . . . . . 1 . Parts Damaged 1 | . . . . . . . . . 1 . . . . . . . Bothacking | -11 -10 -10 -10 -8 -8 -6 -6 -5 -4 -4 -4 -4 -3 -3 -2 -2 ------------ Run | Yrd Mat Min Sub Rec Scr Fac DSF Fac Fac Gar Fac Gar Res Tes Res Qua Used RIF Installer 2 | . . . . . . . . . . 2 . . . . . . Patrol Navigation 1 | . . . . . . . . . . 1 . . . . . . Robots Hacked 1 | . . . . . . . . . . . . . . 1 . . Non-combat . | . . . . . . . . . . . . . . . . . Combat 1 | . . . . . . . . . . . . . . 1 . . Robot Hacks Applied . | . . . . . . . . . . . . . . . . . Relay Couplers Released 11 | . . . . . . . . . . 7 . . . . . 4 Machine Destruction 7 | . . . . . . . . . . 7 . . . . . . Programmers 4 | . . . . . . . . . . . . . . . . 4 Fabnet Peak Effective % 3 | . . . . . . . . . 3 3 3 3 1 1 . . Autooverrided 1 | . . . . . . . . . . . . . . 1 . . Robots Rewired 11 | . . . . . . . . . . 11 . . . . . . Allies Hacked 1 | . . . . . . . . . . . . . . . 1 . Hacks Repelled . | . . . . . . . . . . . . . . . . . Allies | -11 -10 -10 -10 -8 -8 -6 -6 -5 -4 -4 -4 -4 -3 -3 -2 -2 -------- Run | Yrd Mat Min Sub Rec Scr Fac DSF Fac Fac Gar Fac Gar Res Tes Res Qua Total Allies 19 | . . . . . . . . 1 . 11 . . . 1 6 . Largest Group 11 | . . . . . . . . 1 . 11 11 4 . 1 5 . Highest-Rated Group 552 | . . . . . . . . 64 . 552 552 207 . 42 323 . Highest-Rated Ally 67 | . . . . . . . . 64 . 56 56 56 . 42 67 . Total Orders 1 | . . . . . . . . . . . . . . . 1 . EXPLORE 1 | . . . . . . . . . . . . . . . 1 . Ally Attacks 122 | . . . . . . . . . . . 80 11 . 3 28 . Total Damage 4172 | . . . . . . . . . . . 2723 459 . 144 846 . Kills 27 | . . . . . . . . . . . 18 4 . . 5 . Allies Corrupted . | . . . . . . . . . . . . . . . . . Allies Melted 1 | . . . . . . . . . . . . 1 . . . . Intel | -11 -10 -10 -10 -8 -8 -6 -6 -5 -4 -4 -4 -4 -3 -3 -2 -2 ------- Run | Yrd Mat Min Sub Rec Scr Fac DSF Fac Fac Gar Fac Gar Res Tes Res Qua Active Infowar (turns) 9168 | . . . . . . 414 300 589 807 723 307 121 235 1482 2077 2113 Optics 5614 | . . . . . . . . . . . . . . 1424 2077 2113 Terrain 53 | . . . . . . . . . . . . . . 53 . . Structural 195 | . . . . . . . . . . . . . . 195 . . T.N.C. 11 | . . . . . . . . . . . . . . . 11 . Machine Analysis 4799 | . . . . . . 414 300 589 807 723 307 121 235 1303 . . Cloaking 443 | . . . . . . . . 146 295 . 2 . . . . . Jamming 1004 | . . . . . . . . . . . . 3 6 . 995 . Robot Analysis Total 12 | . . . . 1 8 . . 3 . . . . . . . . Derelict Logs Recovered 3 | . . . 1 . 2 . . . . . . . . . . . Drone Launches 8 | . . . . . . . . . . . . . . . 8 . Drone Recoveries . | . . . . . . . . . . . . . . . . . Exploration | -11 -10 -10 -10 -8 -8 -6 -6 -5 -4 -4 -4 -4 -3 -3 -2 -2 ------------- Run | Yrd Mat Min Sub Rec Scr Fac DSF Fac Fac Gar Fac Gar Res Tes Res Qua Turns Passed 16128 | 14 555 57 2822 408 3060 417 300 589 807 723 307 121 235 1482 2118 2113 Spaces Moved 12830 | 20 302 9 1578 320 2717 366 125 449 771 1105 643 156 538 1072 1284 1375 Core 147 | 20 37 . . . . . . 86 . . . . 4 . . . Treads 10 | . . . . . . . 10 . . . . . . . . . Legs 281 | . . . . . . . 69 151 . . . . . 61 . . Wheels 8811 | . 265 9 1578 320 2717 366 46 . . . . . . 851 1284 1375 Hover 948 | . . . . . . . . 212 736 . . . . . . . Flight 2633 | . . . . . . . . . 35 1105 643 156 534 160 . . Fastest Speed 13 | 50 50 130 105 90 95 95 110 50 28 28 28 13 13 54 86 88 Average Speed 89 | 50 117 130 129 118 110 105 137 105 63 29 28 26 33 88 92 97 Slowest Speed 360 | 50 130 130 135 125 125 110 360 187 150 105 28 93 200 115 110 130 Overloaded Moves 91 | . . . . . . . . . . . . 29 62 . . . Propulsion Burnouts . | . . . . . . . . . . . . . . . . . Robots Hopped 25 | . . . . . . . . . 3 2 3 7 5 5 . . Potential Cave-ins 21 | . . . . . . . . . . . . . . . . 21 Cave-ins Triggered 2 | . . . . . . . . . . . . . . . . 2 Teleports 1 | . . . . . . . . . . . . . . . . 1 Exploration Rate (%) 42 | 4 31 4 75 27 92 9 79 16 12 96 13 29 17 93 31 90 Regions Visited 16 Branch Regions 6 Pre-discovered Areas 10 | . 1 . 1 3 4 . . . . . . . 1 . . . Known Exits Taken 6 | . . . . . . 1 . 1 1 . 1 . 1 1 . . Unknown Exits Taken 7 | 1 1 1 1 1 1 . . . . . . . . . 1 . Scrap Searched 11 | . . . 8 . 3 . . . . . . . . . . . Spaces Dug 153 | . . . 66 . . . . 1 4 43 17 4 . 10 4 4 Terrain Destroyed 508 | . . . 69 2 . . . 24 46 44 18 4 48 138 75 40 Melee 83 | . . . 16 . . . . . 4 40 17 4 . 2 . . Projectile 195 | . . . 53 2 . . . 2 . 4 1 . . 23 70 40 AOE 216 | . . . . . . . . 22 36 . . . 48 110 . . Terrain Rammed . | . . . . . . . . . . . . . . . . . Walls Destroyed . | . . . . . . . . . . . . . . . . . Machines Disabled . | . . . . . . . . . . . . . . . . . Actions | -11 -10 -10 -10 -8 -8 -6 -6 -5 -4 -4 -4 -4 -3 -3 -2 -2 --------- Run | Yrd Mat Min Sub Rec Scr Fac DSF Fac Fac Gar Fac Gar Res Tes Res Qua Total 16032 | 22 428 54 2167 349 2786 395 201 521 982 1391 734 204 579 1436 1879 1904 Wait 1202 | . 22 46 373 3 16 1 4 20 80 136 60 6 4 99 172 160 Move 12767 | 19 301 8 1577 319 2716 365 124 448 765 1100 636 144 527 1062 1283 1373 Hop 21 | . . . . . . . . . 3 2 3 4 5 4 . . Pick Up 249 | . 35 . 24 13 22 5 7 9 13 10 4 2 5 21 28 51 Fast Attach 189 | 2 5 . . 3 2 5 12 2 22 11 1 . 9 31 56 28 Attach 106 | . 4 . 9 . . 4 1 8 6 1 2 3 8 12 23 25 Detach 22 | . 1 . . . . . . 3 1 1 . 1 5 2 3 5 Swap 117 | . 3 . 19 1 7 1 8 4 11 1 2 2 3 16 20 19 Drop 277 | . 11 . 23 7 22 4 14 3 26 11 3 1 7 43 43 59 Fire 856 | . 46 . 124 3 . 2 31 24 45 5 5 9 6 136 246 174 Melee 126 | . . . 17 . . . . . 10 70 18 7 . 4 . . Ram 4 | 1 . . . . . . . . . 1 . . . . 2 . Kick 6 | . . . . . . . . . . . . . . 6 . . Crush . | . . . . . . . . . . . . . . . . . Escape Stasis 43 | . . . . . . 8 . . . . . 25 . . . 10 Rewire 43 | . . . . . 1 . . . . 42 . . . . . . Trap . | . . . . . . . . . . . . . . . . . Miscellaneous 4 | . . . 1 . . . . . . . . . . . 3 . Route ------- -11/Scrapyard -10/Materials -10/Mines -10/Subcaves (discovered 3 exits: [*Mat x2] / *Rec) -8/Recycling -8/Scraptown (discovered 2 exits: *Fac x2) -6/Factory (discovered 4 exits: Fac / Low x2 / DSF) -6/DSF -5/Factory (discovered 3 exits: *Fac / Upp x2) -4/Factory (discovered 2 exits: Upp / Gar) -4/Garrison (discovered 4 exits: *Res x3 / *Fac) -4/Factory (discovered 4 exits: Upp x2 / Arm / Gar) -4/Garrison -3/Research (discovered 3 exits: Res x2 / *Tes) -3/Testing -2/Research -2/Quarantine (discovered 1 exit: [*Acc]) History --------- Turn | Location | Event 3 | -11/Scrapyard | Discovered new exit (range 16) 15 | -11/Scrapyard | Entered Materials 300 | -10/Materials | Build established: Mutant 406 | -10/Materials | Discovered new exit (range 8) 570 | -10/Materials | Entered Mines 615 | -10/Mines | Discovered new exit (range 4) 627 | -10/Mines | Entered Subcaves 628 | -10/Subcaves | Approached by a straggling Scientist 719 | -10/Subcaves | Disturbed a concealed Subdweller 816 | -10/Subcaves | Learned location of Zion (-7) 816 | -10/Subcaves | Met a Zionite searching for "candidates" 821 | -10/Subcaves | Shifting Twisted Machinery released Sub. Power Source 878 | -10/Subcaves | Shifting Twisted Machinery released Battle Rifle 972 | -10/Subcaves | Visited 4L-MR0's lab 988 | -10/Subcaves | Found Gun Armor 1264 | -10/Subcaves | A swath of the cavern ceiling suddenly collapsed 1302 | -10/Subcaves | Shifting Twisted Machinery released Ripper 1302 | -10/Subcaves | Shifting Twisted Machinery released Sub. Optics 1717 | -10/Subcaves | Ambushed by Subdwellers from Twisted Machinery 1727 | -10/Subcaves | Core integrity fell below 50% 2877 | -10/Subcaves | Discovered new exit (range 7) 3071 | -10/Subcaves | Learned Materials emergency access door positions 3176 | -10/Subcaves | Core integrity fell below 20% 3193 | -10/Subcaves | Discovered new exit (range 5) 3383 | -10/Subcaves | Visited Clippyterm 3386 | -10/Subcaves | Learned Factory trap positions 3386 | -10/Subcaves | Learned Factory emergency access door positions 3442 | -10/Subcaves | Discovered new exit (range 8) 3449 | -10/Subcaves | Entered Recycling 3653 | -8/Recycling | Scanned before Scraplab entrance 3843 | -8/Recycling | Entered Scraplab 3855 | -8/Recycling | Discovered new exit (range 2) 3857 | -8/Recycling | Entered Scraptown 3960 | -8/Scraptown | Heard Great Nut preacher, LISTEN AND RECITE! 4084 | -8/Scraptown | Visited UFD Registry 4084 | -8/Scraptown | Registered with UFD as "Pipefunk" 4297 | -8/Scraptown | Scanned Subdweller tech in exchange for log data 4301 | -8/Scraptown | Learned 8 Factory zone layouts 4321 | -8/Scraptown | Discovered new exit (range 5) 4380 | -8/Scraptown | Guru changed UFD alias to "Thundernuts" 4459 | -8/Scraptown | Visited Symbiants 4477 | -8/Scraptown | Visited Cave Peace 4690 | -8/Scraptown | Visited Comm Corps 4739 | -8/Scraptown | Visited The Evicted 4775 | -8/Scraptown | Visited CR-KLE's Repair Center 4800 | -8/Scraptown | Visited Assassins FH 4810 | -8/Scraptown | Visited TADAMA 4971 | -8/Scraptown | Visited Abandonware Association 4983 | -8/Scraptown | Learned abandonware demo "REPAIR.EXE" 4983 | -8/Scraptown | Learned abandonware demo "ERRANTS.EXE" 5011 | -8/Scraptown | Visited Curators Association 5066 | -8/Scraptown | Visited Scrapoid Research Area 5113 | -8/Scraptown | Delivered Scrap Shield to a Scientist 5274 | -8/Scraptown | Visited A0-MCA Data Center 5282 | -8/Scraptown | Given a B- rating by A0-MCA 5319 | -8/Scraptown | Found A0-MCA's Component Scanner 5357 | -8/Scraptown | Visited Supply Room 5376 | -8/Scraptown | Visited Derelict Rescue Squad 5407 | -8/Scraptown | Visited Cartography Club 5425 | -8/Scraptown | Visited Analyses Database 5453 | -8/Scraptown | Visited Chapter 10 5509 | -8/Scraptown | Visited Junk Repository 6006 | -8/Scraptown | Found DRS Beacon 6491 | -8/Scraptown | Found Surveybot 17 Chip 6604 | -8/Scraptown | Learned location of Warlord (-5) 6604 | -8/Scraptown | Learned location of Armory (-4) 6604 | -8/Scraptown | Learned 16 Materials zone layouts 6604 | -8/Scraptown | Learned 8 Factory zone layouts 6604 | -8/Scraptown | Learned 8 Research zone layouts 6604 | -8/Scraptown | Learned 8 Access zone layouts 6604 | -8/Scraptown | Learned 4 Mines zone layouts 6604 | -8/Scraptown | Learned 20 Lower Caves zone layouts 6604 | -8/Scraptown | Learned Factory emergency access door positions 6604 | -8/Scraptown | Learned location of 1 exit from Research 6604 | -8/Scraptown | Learned location of 2 exits from Proximity Caves 6746 | -8/Scraptown | Discovered new exit (range 3) 6857 | -8/Scraptown | Met Optimus 6857 | -8/Scraptown | Accepted into 0bPrime 6917 | -8/Scraptown | Entered Factory 6917 | -6/Factory | Evolved 8 slots: Propulsion x2, Utility x4, Weapon x2 6918 | -6/Factory | Identified exit to Lower Caves 6919 | -6/Factory | Identified exit to Factory 6920 | -6/Factory | Loaded intel: 97 trap records 7328 | -6/Factory | Build established: Tank 7334 | -6/Factory | Identified exit to DSF 7334 | -6/Factory | Entered DSF 7383 | -6/DSF | Additional patrols routed to DSF 7540 | -6/DSF | Sterilization system engaged 7560 | -6/DSF | Ambient heat levels rising (+10) 7575 | -6/DSF | Ambient heat levels rising (+10) 7590 | -6/DSF | Ambient heat levels rising (+10) 7601 | -6/DSF | Discovered exit to Factory (range 16) 7605 | -6/DSF | Ambient heat levels rising (+10) 7620 | -6/DSF | Ambient heat levels rising (+10) 7634 | -6/DSF | Entered Factory 7634 | -5/Factory | Evolved 2 slots: Utility x2 7635 | -5/Factory | Identified exit to Upper Caves 7985 | -5/Factory | Core integrity fell below 50% 8005 | -5/Factory | Fabricated I-47 Archangel (x1) 8012 | -5/Factory | Lost 10 parts (1p3n1u5w) 8145 | -5/Factory | Discovered new exit (range 14) 8153 | -5/Factory | Identified exit to Factory 8223 | -5/Factory | Entered another Factory area 8223 | -4/Factory | Evolved 2 slots: Power x1, Propulsion x1 8224 | -4/Factory | Identified exit to Upper Caves 8229 | -4/Factory | Build established: Hacker-Mutant 8230 | -4/Factory | Loaded intel: 8 recycling unit locations 8250 | -4/Factory | Identified exit to DSF 8463 | -4/Factory | Destroyed 7 combat bots 8555 | -4/Factory | Build established: Hacker-Gunner 8804 | -4/Factory | Lost 3 parts (1p1u1w) 9030 | -4/Factory | Identified exit to Garrison 9030 | -4/Factory | Entered Garrison 9030 | -4/Garrison | Discovered recently destroyed garrison 9058 | -4/Garrison | Lost 12 parts (2p5n4u1w) 9086 | -4/Garrison | Found Relay Coupler [Proto] 9088 | -4/Garrison | Found Relay Coupler [Proto] 9106 | -4/Garrison | Found Relay Coupler [Proto] 9228 | -4/Garrison | Installed Relay Interface Framework 9246 | -4/Garrison | Garrison Relay disabled 9282 | -4/Garrison | Discovered new exit (range 13) 9286 | -4/Garrison | Identified exit to Research 9292 | -4/Garrison | Discovered new exit (range 8) 9296 | -4/Garrison | Identified exit to Factory 9342 | -4/Garrison | Learned Research security intel 9358 | -4/Garrison | Expanded RIF knowledge: Patrol Navigation 9396 | -4/Garrison | Discovered exit to Research (range 8) 9422 | -4/Garrison | Garrison Relay disabled 9498 | -4/Garrison | Discovered exit to Research (range 12) 9579 | -4/Garrison | Found Relay Coupler [Proto] 9622 | -4/Garrison | Build established: Commander-Sprinter 9753 | -4/Garrison | Entered Factory 9753 | -4/Factory | Accompanied by 11 allies 9761 | -4/Factory | Identified exit to Armory 9870 | -4/Factory | Identified exit to Garrison 9950 | -4/Factory | Repaired Cloaking Device 10011 | -4/Factory | Garrison activated, responded to threat 10060 | -4/Factory | Entered Garrison 10060 | -4/Garrison | Accompanied by 4 allies 10081 | -4/Garrison | Spotted B-86 Titan 10104 | -4/Garrison | Triggered checkpoint 10148 | -4/Garrison | Core integrity fell below 50% 10154 | -4/Garrison | Lost 4 allies 10158 | -4/Garrison | Triggered checkpoint 10172 | -4/Garrison | Triggered checkpoint 10180 | -4/Garrison | Discovered exit to Research (range 9) 10181 | -4/Garrison | Entered Research 10181 | -3/Research | Evolved 2 slots: Utility x2 10182 | -3/Research | Identified exit to Research 10193 | -3/Research | Discovered new exit (range 10) 10207 | -3/Research | Lost 5 parts (2n3w) 10218 | -3/Research | Identified exit to Testing 10233 | -3/Research | Spotted B-86 Titan 10302 | -3/Research | Loaded intel: 5 recycling unit locations 10302 | -3/Research | Learned location of Protoforge (-2) 10416 | -3/Research | Entered Testing 10425 | -3/Testing | Lost 6 parts (1p1n4u) 10472 | -3/Testing | Found Spectral Analyzer 10502 | -3/Testing | Found Exp. Signal Interpreter 10611 | -3/Testing | Build established: Mutant 10894 | -3/Testing | Found Hyp. Multirail 11166 | -3/Testing | First assault squad dispatched 11178 | -3/Testing | Destroyed 8 combat bots 11199 | -3/Testing | Found System Mapper 11210 | -3/Testing | Spotted Striker 11215 | -3/Testing | Spotted Striker 11231 | -3/Testing | Destroyed Striker 11236 | -3/Testing | Destroyed Striker 11318 | -3/Testing | Build established: Tank 11410 | -3/Testing | Destroyed 9 combat bots 11447 | -3/Testing | Found Portable AFG 11475 | -3/Testing | System corruption reached 10% 11520 | -3/Testing | Found Disintegrator 11713 | -3/Testing | Found Thermal Barrier 11822 | -3/Testing | Discovered exit to Research (range 22) 11898 | -3/Testing | Entered Research 11898 | -2/Research | Evolved 2 slots: Utility x2 12267 | -2/Research | Build established: Scavenger-Tank 12386 | -2/Research | Lost 4 allies 12721 | -2/Research | System corruption reached 10% 12742 | -2/Research | Build established: Hacker-Gunner 12753 | -2/Research | Lost 5 parts (2p2u1w) 12974 | -2/Research | Lost 13 parts (2p2n5u4w) 13149 | -2/Research | Lost 6 parts (3n1u2w) 13244 | -2/Research | Loaded intel: 5 recycling unit locations 13398 | -2/Research | First assault squad dispatched 13713 | -2/Research | Core integrity fell below 50% 13754 | -2/Research | Lost 4 parts (1p2u1w) 13807 | -2/Research | Lost 3 parts (1p1n1w) 13853 | -2/Research | Build established: Scavenger-Gunner 13930 | -2/Research | Scrapoid reinforcements arrived 13956 | -2/Research | Lost 5 parts (2p3w) 13991 | -2/Research | Spotted B-90 Cyclops 13995 | -2/Research | Lost 5 allies 14010 | -2/Research | Discovered new exit (range 9) 14016 | -2/Research | Entered Quarantine 14046 | -2/Quarantine | Found Exp. EM Disruption Field 14049 | -2/Quarantine | Found Exp. EM Disruption Field 14265 | -2/Quarantine | Lost 4 parts (2n1u1w) 14413 | -2/Quarantine | System corruption reached 30% 14479 | -2/Quarantine | Lost 3 parts (2p1w) 14527 | -2/Quarantine | Discovered new exit (range 13) 14659 | -2/Quarantine | Found Enh. Gamma Bomb Array 14704 | -2/Quarantine | Found Exp. Signal Interpreter 14766 | -2/Quarantine | First assault squad dispatched 14780 | -2/Quarantine | Build established: Scavenger-Tank 14821 | -2/Quarantine | Found Alien Reactor 14821 | -2/Quarantine | Identified Matter Drive 14954 | -2/Quarantine | Crushed by falling debris 14967 | -2/Quarantine | Found Alien Artifact 14967 | -2/Quarantine | Identified Core Reset Matrix 14967 | -2/Quarantine | Used Core Reset Matrix 14971 | -2/Quarantine | Detected hypermatrix surge 14971 | -2/Quarantine | Sensed 10 artifacts in vicinity 15102 | -2/Quarantine | Scanned by Researcher 15105 | -2/Quarantine | Core integrity fell below 20% 15182 | -2/Quarantine | Found Phase Armor 15213 | -2/Quarantine | Found Hpw. Transdimensional Reconstructor 15216 | -2/Quarantine | Found Transdimensional Reconstructor 15217 | -2/Quarantine | Found Transdimensional Reconstructor 15220 | -2/Quarantine | Found Hpw. Transdimensional Reconstructor 15227 | -2/Quarantine | Found Dimensional Node Initializer 15229 | -2/Quarantine | Found Dimensional Node Initializer 15409 | -2/Quarantine | Build established: Scavenger-Gunner 15411 | -2/Quarantine | Crushed by falling debris 15634 | -2/Quarantine | Discovered new exit (range 13) 15698 | -2/Quarantine | Lost 3 parts (1p1u1w) 15917 | -2/Quarantine | Met incapacitated Sigix Warrior 15917 | -2/Quarantine | Lockdown squad dispatched 15920 | -2/Quarantine | Acquired the access code to the Sigix quarantine chamber 15922 | -2/Quarantine | Unlocked Sigix quarantine chamber 15929 | -2/Quarantine | Found Sigix Containment Pod 15986 | -2/Quarantine | Spotted Lightning 16001 | -2/Quarantine | Spotted Lightning 16004 | -2/Quarantine | Spotted Lightning 16010 | -2/Quarantine | Warped through subspace 16040 | -2/Quarantine | Lost 3 parts (3u) 16108 | -2/Quarantine | Spotted Fortress 16129 | -2/Quarantine | Destroyed by Fortress with Graviton Cannon Last Messages --------------- [Fortress]. 16109_ Component scanned: Coolant Network [Fortress]. 16109_ Component scanned: Adv. Coolant Injector [Fortress]. 16109_ Component scanned: Exp. Weapon Shielding [Fortress]. 16109_ Component scanned: Graviton Cannon [Fortress]. 16111_ Enh. Nova Cannon destroyed. 16117_ ZLM, ,A< JYIQ WWGM=LUMZ&M8|V==%XAA 16120_ ALERT: Potential suspicious activity detected, Q-Series report to Quarantine Zone 4V. 16123_ Imp. Medium Armor Plating destroyed. 16123_ System Shield destroyed. 16123_ Critical hit (Blast). 16126_ Knocked back. 16129_ Adv. Heat Sink destroyed. [Achievement: 40k Club] Map ----- +----------------------------------------------------+ | | | | | | | ?????????????????????????????????????????????????? | | ?????????????????????????????????????????????????? | | ?????????????????????????????????????????????????? | | ?????????????????????????????????????????????????? | | ?????????????????????????????????????????????????? | | ?????????????????????????????????????????????????? | | ?????????????????????????????????????????????????? | | ?????????????????????????????????????????????????? | | ?????????????????????????????????????????????????? | | ?????????????????????????????????????????????????? | | ?????????????????????????????????????????????????? | | ?????????????????????????????????????????????????? | | ?????????????????????????????????????????????????? | | ?????????????????????????????????????????????????? | | ?????????????????????????????????????????????????? | | ?????????????????????????????????????????????????? | | ???????????########????????##???#????????????????? | | ############;#;##;#########;###;###############??? | | % % c ?? | | gg ?? | | =hh gg ?? | | %! k ? | | = @ ? | | FFF % ? | | ############## FFF ########################????? | | ?????????????#" FFF""#???????????????????????????? | | ?????????????#"" ""#???????????????????????????? | | ?????????????#"" ""#???????????????????????????? | | ?????????????#"" ""#???????????????????????????? | | ?????????????#"""""""#???????????????????????????? | | ?????????????#########???????????????????????????? | | ?????????????????????????????????????????????????? | | ?????????????????????????????????????????????????? | | ?????????????????????????????????????????????????? | | ?????????????????????????????????????????????????? | | ?????????????????????????????????????????????????? | | ?????????????????????????????????????????????????? | | ?????????????????????????????????????????????????? | | ?????????????????????????????????????????????????? | | ?????????????????????????????????????????????????? | | ?????????????????????????????????????????????????? | | ?????????????????????????????????????????????????? | | ?????????????????????????????????????????????????? | | ?????????????????????????????????????????????????? | | ?????????????????????????????????????????????????? | | ?????????????????????????????????????????????????? | | ?????????????????????????????????????????????????? | +----------------------------------------------------+ Best States ------------- Heat Dissipation 153 Energy Generation 45 Energy Capacity 1000 Matter Stores 300 Matter Capacity 300 Sight Range 24 Terrain Scan Range 14 Terrain Scan Density 10 Jamming Range 16 Cloak Strength 2 Power Amplification 30 Additional Mass Support 16 Base Temperature (-) 200 Armor Coverage 800 Resistance: KI 20 Resistance: TH 50 Propulsion Shielding 66 Weapon Cycling 25 Evasion (%) 70 Targeting Accuracy 8 Melee Accuracy 6 Launcher Accuracy 40 Target Analysis 12 Core Analysis 6 Recoil Reduction 2 Particle Charging 30 Salvage Targeting 3 Offensive Hacking 42 Defensive Hacking 10 Item Schematics ----------------- Cld. Antimatter Reactor | -2/Quarantine | Archive Cld. Field Propulsion Drive | -2/Quarantine | Archive Exp. Targeting Computer | -2/Quarantine | Archive Adv. EM Disruption Field | -2/Quarantine | Archive Helical Railgun | -2/Quarantine | Archive Robot Schematics ------------------ None Fabricated ------------ I-47 Archangel | x1 | -5/Factory | Preloaded Repaired ---------- Cloaking Device | 34% | -4/Factory Alien Tech Used ----------------- Matter Drive Core Reset Matrix Phase Armor High-powered Transdimensional Reconstructor Achievements -------------- 40k Club Challenges ------------ None Game ------ Seed LaserCentriumTorch Manual? 0 Play Time 05:03:13 Cumulative 179.6 hours Start 2025.05.18 @ 12:45:20 End 2025.05.20 @ 18:35:29 Sessions 9 Manual Loads 0 Difficulty Rogue Special Mode None Game No. 202 Rogue 202 Adventurer 0 Explorer 0 Win Type - Total 1 Types 1/0/0/0/0/0/0/0/0/0 Lore% 70 Gallery% 70 Achievement% 61 Wizard Run 0 Options --------- Layout 1 ASCII 0 Keyboard 0 Movement Numpad Keybinds 0 Fullscreen 1 Font 24/Smallcaps Map View 50x35 Zoom Use 0% Tactical HUD 1 Map Filters NONE Filters NONE Steam 1 RUN: 527880fc-78df-4ef2-8285-adc566d75a03